fUST/lending_fUST_20250514
["ID","MTS","AMOUNT","RATE_DAILY","PERIOD"]
[360970339,1747171841331,-400.0,0.00013972,2]
[360970340,1747171841340,-400.0,0.00013972,2]
[360970341,1747171841350,-400.0,0.00013972,2]
[360970342,1747171841360,-400.0,0.00013972,2]
[360970343,1747171841371,-465.07,0.00013972,2]
[360970344,1747171841381,-213.544491,0.00013972,2]
[360970345,1747171841391,-548.45,0.00013972,2]
[360970346,1747171841401,-194.66261089,0.00013972,2]
[360970347,1747171841412,-1210.12,0.00013972,2]
[360970348,1747171841422,-440.46,0.00013972,2]
[360970349,1747171841432,-342.8927751,0.00013972,2]
[360970350,1747171841443,-151.0,0.00013972,2]
[360970351,1747171841453,-400.0,0.00013972,2]
[360970352,1747171841463,-623.03,0.00013972,2]
[360970353,1747171841474,-400.0,0.00013972,2]
[360970354,1747171841484,-400.0,0.00013972,2]
[360970355,1747171841494,-400.0,0.00013972,2]
[360970356,1747171841504,-728.48,0.00013972,2]
[360970357,1747171841515,-476.98,0.00013972,2]
[360970358,1747171841525,-400.0,0.00013972,2]
[360970359,1747171841535,-402.84,0.00013972,2]
[360970360,1747171841545,-400.0,0.00013972,2]
[360970361,1747171841555,-400.0,0.00013972,2]
[360970362,1747171841566,-400.0,0.00013972,2]
[360970363,1747171841576,-400.0,0.00013972,2]
[360970364,1747171841585,-223.24,0.00013972,2]
[360970365,1747171841594,-400.0,0.00013972,2]
[360970366,1747171841604,-400.0,0.00013972,2]
[360970367,1747171841614,-835.13,0.00013972,2]
[360970368,1747171841623,-151.0,0.00013972,2]
[360970369,1747171841633,-400.0,0.00013972,2]
[360970370,1747171841643,-400.0,0.00013972,2]
[360970371,1747171841653,-691.47,0.00013972,2]
[360970372,1747171841663,-400.0,0.00013972,2]
[360970373,1747171841673,-523.45,0.00013972,2]
[360970374,1747171841683,-969.04,0.00013972,2]
[360970375,1747171841693,-417.64,0.00013972,2]
[360970376,1747171841702,-151.0,0.00013972,2]
[360970377,1747171841712,-151.0,0.00013972,2]
[360970378,1747171841722,-151.0,0.00013972,2]
[360970379,1747171841732,-151.0,0.00013972,2]
[360970380,1747171841742,-400.0,0.00013972,2]
[360970381,1747171841752,-509.63,0.00013972,2]
[360970382,1747171841762,-151.0,0.00013972,2]
[360970383,1747171841771,-151.0,0.00013972,2]
[360970384,1747171841782,-665.56,0.00013972,2]
[360970385,1747171841791,-153.851932,0.00013972,2]
[360970386,1747171841801,-400.0,0.00013972,2]
[360970387,1747171841811,-400.0,0.00013972,2]
[360970388,1747171841822,-400.0,0.00013972,2]
[360970389,1747171841833,-400.0,0.00013972,2]
[360970390,1747171841843,-400.0,0.00013972,2]
[360970391,1747171841857,-400.0,0.00013972,2]
[360970392,1747171841867,-400.0,0.00013972,2]
[360970393,1747171841877,-400.0,0.00013972,2]
[360970394,1747171841886,-581.28,0.00013972,2]
[360970395,1747171841897,-400.0,0.00013972,2]
[360970396,1747171841909,-964.08,0.00013972,2]
[360970397,1747171841919,-400.0,0.00013972,2]
[360970398,1747171841928,-400.0,0.00013972,2]
[360970399,1747171841938,-442.88,0.00013972,2]
[360970400,1747171841948,-400.0,0.00013972,2]
[360970401,1747171841959,-617.41,0.00013972,2]
[360970402,1747171841970,-400.0,0.00013972,2]
[360970403,1747171841981,-1387.69,0.00013972,2]
[360970404,1747171841991,-1115.948622,0.00013972,2]
[360970405,1747171842002,-587.98,0.00013972,2]
[360970406,1747171842012,-1115.948622,0.00013972,2]
[360970407,1747171842021,-1115.948622,0.00013972,2]
[360970408,1747171842032,-1115.948622,0.00013972,2]
[360970409,1747171842042,-1115.948622,0.00013972,2]
[360970410,1747171842052,-400.0,0.00013972,2]
[360970411,1747171842062,-1115.948622,0.00013972,2]
[360970412,1747171842071,-934.41,0.00013972,2]
[360970413,1747171842082,-1115.948622,0.00013972,2]
[360970414,1747171842092,-1115.948622,0.00013972,2]
[360970415,1747171842101,-400.0,0.00013972,2]
[360970416,1747171842111,-400.0,0.00013972,2]
[360970417,1747171842121,-455.37,0.00013972,2]
[360970418,1747171842132,-400.0,0.00013972,2]
[360970419,1747171842141,-715.7,0.00013972,2]
[360970420,1747171842151,-151.0,0.00013972,2]
[360970421,1747171842161,-151.0,0.00013972,2]
[360970422,1747171842175,-400.0,0.00013972,2]
[360970423,1747171842184,-151.0,0.00013972,2]
[360970424,1747171842194,-151.0,0.00013972,2]
[360970425,1747171842204,-400.0,0.00013972,2]
[360970426,1747171842214,-1050.1,0.00013972,2]
[360970428,1747171842223,-400.0,0.00013972,2]
[360970430,1747171842233,-151.0,0.00013972,2]
[360970431,1747171842243,-151.0,0.00013972,2]
[360970432,1747171842252,-460.61,0.00013972,2]
[360970433,1747171842262,-151.0,0.00013972,2]
[360970434,1747171842271,-151.0,0.00013972,2]
[360970435,1747171842282,-400.0,0.00013972,2]
[360970436,1747171842291,-272.58644199,0.00013972,2]
[360970437,1747171842303,-400.0,0.00013972,2]
[360970438,1747171842313,-207.72734375,0.00013972,2]
[360970439,1747171842324,-606.18,0.00013972,2]
[360970440,1747171842334,-1497.29,0.00013972,2]
[360970441,1747171842344,-977.91,0.00013972,2]
[360970442,1747171842354,-400.0,0.00013972,2]
[360970443,1747171842364,-400.0,0.00013972,2]
[360970444,1747171842375,-400.0,0.00013972,2]
[360970445,1747171842385,-400.0,0.00013972,2]
[360970446,1747171842395,-670.12,0.00013972,2]
[360970447,1747171842406,-400.0,0.00013972,2]
[360970448,1747171842416,-400.0,0.00013972,2]
[360970449,1747171842426,-400.0,0.00013972,2]
[360970450,1747171842436,-649.09,0.00013972,2]
[360970451,1747171842446,-400.0,0.00013972,2]
[360970452,1747171842456,-400.0,0.00013972,2]
[360970453,1747171842466,-400.0,0.00013972,2]
[360970454,1747171842476,-400.0,0.00013972,2]
[360970455,1747171842486,-500.0,0.00013972,2]
[360970457,1747171842496,-400.0,0.00013972,2]
[360970458,1747171842506,-825.86,0.00013972,2]
[360970459,1747171842517,-594.55,0.00013972,2]
[360970460,1747171842527,-631.73,0.00013972,2]
[360970461,1747171842537,-400.63,0.00013972,2]
[360970462,1747171842547,-400.0,0.00013972,2]
[360970463,1747171842557,-2082.85,0.00013972,2]
[360970464,1747171842567,-1700.28,0.00013972,2]
[360970465,1747171842577,-400.0,0.00013972,2]
[360970466,1747171842587,-404.66,0.00013972,2]
[360970467,1747171842597,-400.0,0.00013972,2]
[360970468,1747171842607,-498.37,0.00013972,2]
[360970469,1747171842618,-400.0,0.00013972,2]
[360970470,1747171842627,-508.09,0.00013972,2]
[360970472,1747171842638,-1219.22,0.00013972,2]
[360970474,1747171842648,-400.0,0.00013972,2]
[360970475,1747171842658,-400.0,0.00013972,2]
[360970476,1747171842669,-400.0,0.00013972,2]
[360970477,1747171842679,-400.0,0.00013972,2]
[360970478,1747171842689,-2779.5,0.00013972,2]
[360970479,1747171842699,-400.0,0.00013972,2]
[360970480,1747171842709,-400.0,0.00013972,2]
[360970481,1747171842721,-654.77,0.00013972,2]
[360970482,1747171842731,-400.0,0.00013972,2]
[360970483,1747171842741,-400.0,0.00013972,2]
[360970484,1747171842751,-400.0,0.00013972,2]
[360970486,1747171842762,-1011.29,0.00013972,2]
[360970488,1747171842772,-151.0,0.00013972,2]
[360970489,1747171842782,-151.0,0.00013972,2]
[360970490,1747171842792,-151.0,0.00013972,2]
[360970491,1747171842802,-151.0,0.00013972,2]
[360970492,1747171842813,-400.0,0.00013972,2]
[360970493,1747171842823,-400.0,0.00013972,2]
[360970494,1747171842833,-283.578443,0.00013972,2]
[360970495,1747171842843,-400.0,0.00013972,2]
[360970496,1747171842855,-283.578443,0.00013972,2]
[360970497,1747171842866,-400.0,0.00013972,2]
[360970498,1747171842876,-400.0,0.00013972,2]
[360970499,1747171842886,-283.578443,0.00013972,2]
[360970500,1747171842896,-283.578439,0.00013972,2]
[360970501,1747171842907,-400.0,0.00013972,2]
[360970502,1747171842917,-400.0,0.00013972,2]
[360970503,1747171842927,-400.0,0.00013972,2]
[360970504,1747171842937,-151.0,0.00013972,2]
[360970505,1747171842948,-151.0,0.00013972,2]
[360970506,1747171842957,-151.0,0.00013972,2]
[360970507,1747171842967,-151.0,0.00013972,2]
[360970508,1747171842976,-1757.96,0.00013972,2]
[360970509,1747171842986,-828.55,0.00013972,2]
[360970510,1747171842995,-639.16,0.00013972,2]
[360970511,1747171843005,-400.0,0.00013972,2]
[360970512,1747171843014,-910.85,0.00013972,2]
[360970513,1747171843025,-400.0,0.00013972,2]
[360970514,1747171843035,-400.0,0.00013972,2]
[360970515,1747171843045,-1432.24,0.00013972,2]
[360970516,1747171843055,-400.0,0.00013972,2]
[360970517,1747171843065,-151.0,0.00013972,2]
[360970518,1747171843074,-151.0,0.00013972,2]
[360970519,1747171843085,-1271.55,0.00013972,2]
[360970520,1747171843095,-400.0,0.00013972,2]
[360970521,1747171843105,-951.73,0.00013972,2]
[360970522,1747171843115,-1964.72,0.00013972,2]
[360970523,1747171843125,-1346.18,0.00013972,2]
[360970524,1747171843135,-314.915783,0.00013972,2]
[360970525,1747171843144,-400.0,0.00013972,2]
[360970526,1747171843155,-1807.95,0.00013972,2]
[360970527,1747171843165,-1872.93,0.00013972,2]
[360970528,1747171843175,-314.915777,0.00013972,2]
[360970529,1747171843185,-2038.91,0.00013972,2]
[360970530,1747171843195,-583.95,0.00013972,2]
[360970532,1747171843205,-400.0,0.00013972,2]
[360970533,1747171843215,-400.0,0.00013972,2]
[360970534,1747171843227,-356.80548335,0.00013972,2]
[360970535,1747171843238,-444.52,0.00013972,2]
[360970536,1747171843248,-400.0,0.00013972,2]
[360970537,1747171843258,-777.75,0.00013972,2]
[360970538,1747171843269,-1133.72,0.00013972,2]
[360970539,1747171843278,-411.73645313,0.00013972,2]
[360970540,1747171843288,-1278.45,0.00013972,2]
[360970541,1747171843299,-2383.74,0.00013972,2]
[360970542,1747171843309,-1367.7,0.00013972,2]
[360970543,1747171843319,-2669.62,0.00013972,2]
[360970544,1747171843329,-2642.98,0.00013972,2]
[360970545,1747171843339,-1343.88,0.00013972,2]
[360970546,1747171843351,-6469.5,0.00013972,2]
[360970547,1747171843362,-400.0,0.00013972,2]
[360970548,1747171843371,-400.0,0.00013972,2]
[360970549,1747171843382,-400.0,0.00013972,2]
[360970550,1747171843392,-1188.47,0.00013972,2]
[360970551,1747171843403,-400.0,0.00013972,2]
[360970552,1747171843414,-400.0,0.00013972,2]
[360970553,1747171843424,-151.0,0.00013972,2]
[360970554,1747171843435,-1336.58,0.00013972,2]
[360970555,1747171843446,-400.0,0.00013972,2]
[360970556,1747171843456,-400.0,0.00013972,2]
[360970557,1747171843466,-400.0,0.00013972,2]
[360970558,1747171843476,-400.0,0.00013972,2]
[360970559,1747171843486,-400.0,0.00013972,2]
[360970560,1747171843496,-451.71,0.00013972,2]
[360970561,1747171843506,-400.0,0.00013972,2]
[360970562,1747171843517,-531.31,0.00013972,2]
[360970563,1747171843527,-443.98,0.00013972,2]
[360970564,1747171843538,-405.74,0.00013972,2]
[360970565,1747171843549,-400.0,0.00013972,2]
[360970566,1747171843559,-400.0,0.00013972,2]
[360970567,1747171843569,-1336.54,0.00013972,2]
[360970568,1747171843580,-400.0,0.00013972,2]
[360970569,1747171843590,-733.54,0.00013972,2]
[360970570,1747171843600,-602.94,0.00013972,2]
[360970572,1747171843935,-400.0,0.00013972,2]
[360970573,1747171843947,-1080.08,0.00013972,2]
[360970574,1747171843956,-400.0,0.00013972,2]
[360970575,1747171843967,-420.67,0.00013972,2]
[360970576,1747171843976,-400.0,0.00013972,2]
[360970577,1747171843986,-400.0,0.00013972,2]
[360970578,1747171843996,-693.78,0.00013972,2]
[360970579,1747171844007,-1431.64,0.00013972,2]
[360970580,1747171844018,-400.0,0.00013972,2]
[360970581,1747171844029,-400.0,0.00013972,2]
[360970582,1747171844038,-654.02,0.00013972,2]
[360970583,1747171844049,-1357.77,0.00013972,2]
[360970584,1747171844058,-1212.64,0.00013972,2]
[360970585,1747171844068,-400.0,0.00013972,2]
[360970586,1747171844077,-400.0,0.00013972,2]
[360970587,1747171844087,-2979.51,0.00013972,2]
[360970588,1747171844097,-400.0,0.00013972,2]
[360970589,1747171844106,-400.0,0.00013972,2]
[360970590,1747171844115,-791.3,0.00013972,2]
[360970591,1747171844126,-400.0,0.00013972,2]
[360970592,1747171844142,-6691.48,0.00013972,2]
[360970593,1747171844153,-400.0,0.00013972,2]
[360970594,1747171844163,-3240.36,0.00013972,2]
[360970595,1747171844173,-400.0,0.00013972,2]
[360970596,1747171844183,-796.34,0.00013972,2]
[360970597,1747171844194,-1457.87,0.00013972,2]
[360970598,1747171844204,-400.0,0.00013972,2]
[360970599,1747171844214,-1151.93,0.00013972,2]
[360970600,1747171844224,-400.0,0.00013972,2]
[360970601,1747171844234,-1965.01,0.00013972,2]
[360970602,1747171844244,-575.28,0.00013972,2]
[360970603,1747171844254,-571.86,0.00013972,2]
[360970604,1747171844264,-400.0,0.00013972,2]
[360970605,1747171844274,-1151.88,0.00013972,2]
[360970606,1747171844284,-523.95,0.00013972,2]
[360970607,1747171844295,-2254.02,0.00013972,2]
[360970608,1747171844305,-780.64,0.00013972,2]
[360970609,1747171844316,-885.61,0.00013972,2]
[360970610,1747171844326,-541.63072618,0.00013972,2]
[360970611,1747171844336,-400.0,0.00013972,2]
[360970612,1747171844347,-1896.51,0.00013972,2]
[360970613,1747171844357,-1446.73,0.00013972,2]
[360970614,1747171844367,-400.0,0.00013972,2]
[360970615,1747171844377,-400.0,0.00013972,2]
[360970616,1747171844388,-400.0,0.00013972,2]
[360970617,1747171844398,-400.0,0.00013972,2]
[360970618,1747171844410,-400.0,0.00013972,2]
[360970619,1747171844420,-2969.24,0.00013972,2]
[360970620,1747171844431,-761.95,0.00013972,2]
[360970621,1747171844441,-3596.39,0.00013972,2]
[360970622,1747171844451,-2929.92,0.00013972,2]
[360970623,1747171844462,-151.0,0.00013972,2]
[360970624,1747171844472,-151.0,0.00013972,2]
[360970625,1747171844482,-304.23529294,0.00013972,2]
[360970626,1747171844492,-629.36,0.00013972,2]
[360970627,1747171844502,-400.0,0.00013972,2]
[360970628,1747171844513,-6035.7,0.00013972,2]
[360970629,1747171844523,-2648.74,0.00013972,2]
[360970630,1747171844532,-400.0,0.00013972,2]
[360970631,1747171844542,-720.33,0.00013972,2]
[360970632,1747171844552,-1698.59,0.00013972,2]
[360970633,1747171844561,-904.66,0.00013972,2]
[360970634,1747171844571,-500.0,0.00013972,2]
[360970635,1747171844582,-458.91,0.00013972,2]
[360970636,1747171844592,-488.71,0.00013972,2]
[360970637,1747171844602,-4244.97,0.00013972,2]
[360970638,1747171844613,-400.0,0.00013972,2]
[360970639,1747171844623,-400.0,0.00013972,2]
[360970640,1747171844633,-408.43,0.00013972,2]
[360970641,1747171844643,-424.56,0.00013972,2]
[360970642,1747171844655,-400.0,0.00013972,2]
[360970643,1747171844665,-832.4,0.00013972,2]
[360970644,1747171844675,-400.0,0.00013972,2]
[360970645,1747171844684,-593.97,0.00013972,2]
[360970646,1747171844695,-687.37,0.00013972,2]
[360970647,1747171844705,-933.65,0.00013972,2]
[360970648,1747171844715,-7895.42,0.00013972,2]
[360970649,1747171844725,-729.98,0.00013972,2]
[360970650,1747171844736,-781.28,0.00013972,2]
[360970651,1747171844749,-508.61,0.00013972,2]
[360970652,1747171844759,-400.0,0.00013972,2]
[360970653,1747171844770,-1748.5,0.00013972,2]
[360970654,1747171844780,-400.0,0.00013972,2]
[360970655,1747171844791,-968.62,0.00013972,2]
[360970656,1747171844801,-2237.52,0.00013972,2]
[360970657,1747171844811,-284.76023084,0.00013972,2]
[360970658,1747171844821,-400.0,0.00013972,2]
[360970659,1747171844831,-400.0,0.00013972,2]
[360970660,1747171844842,-400.0,0.00013972,2]
[360970661,1747171844854,-948.76,0.00013972,2]
[360970662,1747171844867,-12091.79,0.00013972,2]
[360970663,1747171844876,-400.0,0.00013972,2]
[360970664,1747171844887,-400.0,0.00013972,2]
[360970665,1747171844896,-3495.32,0.00013972,2]
[360970666,1747171844908,-400.0,0.00013972,2]
[360970667,1747171844917,-400.0,0.00013972,2]
[360970668,1747171844927,-4347.15,0.00013972,2]
[360970669,1747171844938,-1362.33,0.00013972,2]
[360970670,1747171844949,-789.92,0.00013972,2]
[360970671,1747171844959,-400.0,0.00013972,2]
[360970672,1747171844969,-400.0,0.00013972,2]
[360970673,1747171844980,-907.61,0.00013972,2]
[360970674,1747171844990,-1962.79,0.00013972,2]
[360970675,1747171845000,-400.0,0.00013972,2]
[360970676,1747171845010,-2729.47,0.00013972,2]
[360970677,1747171845020,-400.0,0.00013972,2]
[360970678,1747171845031,-400.0,0.00013972,2]
[360970679,1747171845041,-657.59,0.00013972,2]
[360970680,1747171845051,-7706.43,0.00013972,2]
[360970681,1747171845061,-400.0,0.00013972,2]
[360970682,1747171845071,-1074.08,0.00013972,2]
[360970683,1747171845081,-2264.38,0.00013972,2]
[360970684,1747171845091,-400.0,0.00013972,2]
[360970685,1747171845103,-516.02,0.00013972,2]
[360970686,1747171845115,-500.0,0.00013973,2]
[360970687,1747171845127,-384.57572057,0.00013973,2]
[360970688,1747171845138,-500.0,0.00013973,2]
[360970689,1747171845150,-500.0,0.00013973,2]
[360970690,1747171845162,-500.24428547,0.00013973,2]
[360970691,1747171845172,-165.06186888,0.00013973,2]
[360970692,1747171845181,-500.0,0.00013973,2]
[360970693,1747171845191,-299.73755179,0.00013973,2]
[360970694,1747171845201,-412.67142178,0.00013973,2]
[360970695,1747171845211,-500.0,0.00013973,2]
[360970696,1747171845222,-500.0,0.00013973,2]
[360970697,1747171845232,-500.0,0.00013973,2]
[360970698,1747171845242,-500.0,0.00013973,2]
[360970699,1747171845251,-500.0,0.00013973,2]
[360970700,1747171845261,-151.0,0.00013989,2]
[360970701,1747171845272,-160.0,0.00013997,2]
[360970703,1747171845281,-160.0,0.00013997,2]
[360970704,1747171845292,-422.24190663,0.00013997,2]
[360970705,1747171845302,-652.61296533,0.00014055,2]
[360970706,1747171845312,-706.0,0.0001412,2]
[360970707,1747171845323,-2237.0,0.0001412,2]
[360970708,1747171845333,-404.0,0.0001412,2]
[360970709,1747171845343,-404.0,0.0001412,2]
[360970710,1747171845353,-587.0,0.00014224,2]
[360970711,1747171845363,-1115.948622,0.00014245,2]
[360970712,1747171845374,-1115.948614,0.00014245,2]
[360970713,1747171845383,-151.0,0.00014245,2]
[360970714,1747171845393,-3069.63,0.00014245,2]
[360970715,1747171845403,-1733.83,0.00014245,2]
[360970716,1747171845413,-160.0,0.00014245,2]
[360970717,1747171845423,-14127.7818654,0.00014246,3]
[360970718,1747171845433,-400.0,0.00014246,2]
[360970719,1747171845443,-400.0,0.00014246,2]
[360970720,1747171845453,-400.0,0.00014246,2]
[360970722,1747171845462,-400.0,0.00014246,2]
[360970724,1747171845472,-400.0,0.00014246,2]
[360970725,1747171845483,-400.0,0.00014246,2]
[360970726,1747171845493,-400.0,0.00014246,2]
[360970727,1747171845503,-400.0,0.00014246,2]
[360970728,1747171845513,-400.0,0.00014246,2]
[360970729,1747171845523,-702.95,0.00014246,2]
[360970730,1747171845534,-400.0,0.00014246,2]
[360970731,1747171845543,-400.0,0.00014246,2]
[360970732,1747171845553,-400.0,0.00014246,2]
[360970733,1747171845563,-400.0,0.00014246,2]
[360970734,1747171845573,-654.93,0.00014246,2]
[360970735,1747171845583,-400.0,0.00014246,2]
[360970736,1747171845592,-400.0,0.00014246,2]
[360970737,1747171845603,-400.0,0.00014246,2]
[360970738,1747171845614,-400.0,0.00014246,2]
[360970739,1747171845623,-400.0,0.00014246,2]
[360970741,1747171845633,-400.0,0.00014246,2]
[360970742,1747171845652,-400.0,0.00014246,2]
[360970743,1747171845667,-439.25,0.00014246,2]
[360970744,1747171845678,-385.46647341,0.00014246,2]
[360970745,1747171845688,-432.91,0.00014246,2]
[360970747,1747171845699,-400.0,0.00014246,2]
[360970748,1747171845710,-400.0,0.00014246,2]
[360970749,1747171845720,-847.75,0.00014246,2]
[360970750,1747171845731,-400.0,0.00014246,2]
[360970751,1747171845741,-400.0,0.00014246,2]
[360970752,1747171845751,-400.0,0.00014246,2]
[360970753,1747171845762,-400.0,0.00014246,2]
[360970754,1747171845772,-656.64,0.00014246,2]
[360970755,1747171845782,-400.0,0.00014246,2]
[360970756,1747171845792,-400.0,0.00014246,2]
[360970757,1747171845803,-400.0,0.00014246,2]
[360970758,1747171845813,-400.0,0.00014246,2]
[360970759,1747171845823,-400.0,0.00014246,2]
[360970761,1747171845833,-400.0,0.00014246,2]
[360970762,1747171845844,-400.0,0.00014246,2]
[360970763,1747171845856,-446.11,0.00014246,2]
[360970764,1747171845868,-400.0,0.00014246,2]
[360970765,1747171845878,-400.0,0.00014246,2]
[360970766,1747171845888,-400.0,0.00014246,2]
[360970767,1747171845899,-400.0,0.00014246,2]
[360970768,1747171845912,-400.0,0.00014246,2]
[360970769,1747171845923,-400.0,0.00014246,2]
[360970770,1747171845934,-465.07,0.00014246,2]
[360970771,1747171845944,-548.45,0.00014246,2]
[360970772,1747171845955,-1210.12,0.00014246,2]
[360970773,1747171845966,-440.46,0.00014246,2]
[360970774,1747171845976,-400.0,0.00014246,2]
[360970775,1747171845987,-623.03,0.00014246,2]
[360970776,1747171845997,-400.0,0.00014246,2]
[360970777,1747171846009,-400.0,0.00014246,2]
[360970778,1747171846021,-400.0,0.00014246,2]
[360970779,1747171846032,-728.48,0.00014246,2]
[360970780,1747171846042,-400.0,0.00014246,2]
[360970781,1747171846053,-402.84,0.00014246,2]
[360970782,1747171846063,-400.0,0.00014246,2]
[360970783,1747171846073,-400.0,0.00014246,2]
[360970784,1747171846084,-400.0,0.00014246,2]
[360970785,1747171846094,-400.0,0.00014246,2]
[360970786,1747171846104,-400.0,0.00014246,2]
[360970787,1747171846114,-400.0,0.00014246,2]
[360970788,1747171846124,-835.13,0.00014246,2]
[360970789,1747171846136,-400.0,0.00014246,2]
[360970790,1747171846146,-400.0,0.00014246,2]
[360970791,1747171846155,-691.47,0.00014246,2]
[360970792,1747171846166,-400.0,0.00014246,2]
[360970793,1747171846179,-523.45,0.00014246,2]
[360970794,1747171846189,-969.04,0.00014246,2]
[360970795,1747171846199,-417.64,0.00014246,2]
[360970796,1747171846209,-400.0,0.00014246,2]
[360970797,1747171846219,-509.63,0.00014246,2]
[360970798,1747171846229,-151.0,0.00014246,2]
[360970799,1747171846239,-151.0,0.00014246,2]
[360970800,1747171846250,-151.0,0.00014246,2]
[360970801,1747171846262,-665.56,0.00014246,2]
[360970802,1747171846273,-400.0,0.00014246,2]
[360970803,1747171846283,-400.0,0.00014246,2]
[360970804,1747171846293,-400.0,0.00014246,2]
[360970805,1747171846303,-400.0,0.00014246,2]
[360970806,1747171846313,-400.0,0.00014246,2]
[360970807,1747171846323,-400.0,0.00014246,2]
[360970808,1747171846332,-400.0,0.00014246,2]
[360970809,1747171846342,-400.0,0.00014246,2]
[360970810,1747171846352,-581.28,0.00014246,2]
[360970811,1747171846362,-400.0,0.00014246,2]
[360970812,1747171846373,-964.08,0.00014246,2]
[360970813,1747171846383,-400.0,0.00014246,2]
[360970814,1747171846393,-400.0,0.00014246,2]
[360970815,1747171846410,-442.88,0.00014246,2]
[360970816,1747171846419,-400.0,0.00014246,2]
[360970817,1747171846430,-617.41,0.00014246,2]
[360970818,1747171846440,-400.0,0.00014246,2]
[360970819,1747171846457,-1387.69,0.00014246,2]
[360970820,1747171846474,-587.98,0.00014246,2]
[360970821,1747171846490,-400.0,0.00014246,2]
[360970822,1747171846506,-934.41,0.00014246,2]
[360970823,1747171846518,-400.0,0.00014246,2]
[360970824,1747171846530,-400.0,0.00014246,2]
[360970825,1747171846546,-455.37,0.00014246,2]
[360970826,1747171846560,-400.0,0.00014246,2]
[360970827,1747171846574,-715.7,0.00014246,2]
[360970828,1747171846590,-151.0,0.00014246,2]
[360970829,1747171846605,-400.0,0.00014246,2]
[360970830,1747171846618,-1050.1,0.00014246,2]
[360970831,1747171846632,-286.19561167,0.00014246,2]
[360970832,1747171846647,-460.61,0.00014246,2]
[360970833,1747171846663,-400.0,0.00014246,2]
[360970834,1747171846676,-400.0,0.00014246,2]
[360970835,1747171846689,-606.18,0.00014246,2]
[360970836,1747171846705,-1497.29,0.00014246,2]
[360970837,1747171846719,-977.91,0.00014246,2]
[360970838,1747171846733,-400.0,0.00014246,2]
[360970839,1747171846747,-400.0,0.00014246,2]
[360970840,1747171846761,-400.0,0.00014246,2]
[360970841,1747171846774,-400.0,0.00014246,2]
[360970842,1747171846787,-670.12,0.00014246,2]
[360970843,1747171846798,-400.0,0.00014246,2]
[360970844,1747171846811,-547.66,0.00014246,2]
[360970845,1747171846824,-400.0,0.00014246,2]
[360970846,1747171846836,-649.09,0.00014246,2]
[360970847,1747171846850,-400.0,0.00014246,2]
[360970848,1747171846866,-400.0,0.00014246,2]
[360970849,1747171846880,-400.0,0.00014246,2]
[360970850,1747171846894,-400.0,0.00014246,2]
[360970851,1747171846909,-500.0,0.00014246,2]
[360970852,1747171846924,-400.0,0.00014246,2]
[360970853,1747171846941,-825.86,0.00014246,2]